bitfinex/quotes_ETHUSD_20250328
["timestamp","ask_amount","ask_price","bid_price","bid_amount"]
[1743126500796,5.7529,2016.0,2015.6,4.96121]
[1743126501004,5.7761,2015.6,2015.5,0.45757214]
[1743126501301,9.73112593,2015.6,2015.5,0.45757214]
[1743126501496,12.73112593,2015.6,2015.5,0.45757214]
[1743126501935,18.82127193,2015.6,2015.5,0.45757214]
[1743126502138,0.7629,2014.9,2014.5,5.01362453]
[1743126502416,0.7629,2014.9,2014.5,4.96399]
[1743126502744,0.7629,2014.9,2014.6,3.0]
[1743126502940,5.72599,2014.9,2014.6,1.75442681]
[1743126503345,4.96327,2014.8,2014.5,0.45757214]
[1743126503546,4.96356,2014.7,2014.5,0.45757214]
[1743126503746,4.96327,2014.8,2014.5,0.45757214]
[1743126503947,4.96352,2014.7,2014.5,0.45757214]
[1743126504315,4.96352,2014.7,2014.4,3.40502593]
[1743126504517,4.96352,2014.7,2014.4,4.31964552]
[1743126504746,4.96331,2014.8,2014.4,4.31964552]
[1743126505425,4.96352,2014.7,2014.4,4.31964552]
[1743126505627,4.96331,2014.8,2014.4,4.31964552]
[1743126506031,4.96331,2014.8,2014.4,4.36928293]
[1743126506337,4.96331,2014.8,2014.4,4.31964552]
[1743126507045,4.96354,2014.7,2014.4,4.31964552]
[1743126508555,4.96331,2014.8,2014.4,4.31964552]
[1743126508751,4.96363,2014.7,2014.4,4.31964552]
[1743126508922,9.92737,2014.7,2014.4,3.40502593]
[1743126509454,5.72594,2014.9,2014.3,0.36658656]
[1743126509653,4.96425,2014.4,2014.3,0.36658656]
[1743126510457,4.96425,2014.4,2014.1,0.05]
[1743126510960,0.7996,2014.5,2014.1,8.42001593]
[1743126511147,10.72781,2014.5,2014.1,4.95709814]
[1743126511659,4.96425,2014.4,2014.1,4.95709814]
[1743126511825,4.96425,2014.4,2014.1,5.41558776]
[1743126512759,4.96403,2014.5,2014.1,5.41558776]
[1743126512760,4.96402,2014.5,2014.1,10.38056776]
[1743126512942,4.96376,2014.6,2014.2,4.96472]
[1743126513260,4.96338,2014.8,2014.4,0.7606]
[1743126513834,4.96356,2014.7,2014.4,0.7606]
[1743126514429,4.96338,2014.8,2014.4,0.7606]
[1743126514834,4.96354,2014.7,2014.4,0.7606]
[1743126515532,4.96377,2014.6,2014.4,0.7606]
[1743126515737,4.96377,2014.6,2014.2,7.42068743]
[1743126515938,4.96377,2014.6,2014.2,7.87868197]
[1743126516672,4.96354,2014.7,2014.2,12.84320197]
[1743126516836,4.96354,2014.7,2014.3,4.96438]
[1743126517036,4.96354,2014.7,2014.3,6.59418479]
[1743126519069,4.96354,2014.7,2014.3,1.62980479]
[1743126519257,4.9638,2014.6,2014.2,12.38528743]
[1743126519938,4.96357,2014.7,2014.2,12.38528743]
[1743126520468,4.96357,2014.7,2014.3,4.96445]
[1743126522163,4.96381,2014.6,2014.2,12.38527743]
[1743126522645,4.96357,2014.7,2014.2,12.38527743]
[1743126522845,0.7785,2014.9,2014.5,8.36889593]
[1743126523047,0.7524,2015.1,2014.7,8.36838593]
[1743126523246,5.71414,2015.5,2015.0,4.96266]
[1743126523451,5.71414,2015.5,2015.1,8.36752593]
[1743126523688,5.71414,2015.5,2015.1,9.18462593]
[1743126523840,1.35476282,2015.5,2015.1,0.8171]
[1743126524044,1.35476282,2015.5,2014.6,3.37887523]
[1743126524045,4.96264,2015.1,2014.6,5.76444]
[1743126524242,4.96303,2014.9,2014.6,0.8008]
[1743126524471,4.96303,2014.9,2014.5,4.96391]
[1743126524674,4.96303,2014.9,2014.5,9.92781]
[1743126525041,4.96298,2015.0,2014.6,4.96376]
[1743126525241,9.92587,2015.0,2014.6,4.96376]
[1743126525441,4.96289,2015.0,2014.6,4.96376]
[1743126526171,4.96317,2014.9,2014.5,4.96388]
[1743126526969,4.96317,2014.9,2014.5,3.0]
[1743126527258,4.96387,2014.6,2014.4,0.36680313]
[1743126527866,4.96401,2014.5,2014.4,0.36680313]
[1743126528081,4.96387,2014.6,2014.4,0.36680313]
[1743126528283,9.92778,2014.6,2014.4,0.36680313]
[1743126528462,4.96387,2014.6,2014.4,0.36680313]
[1743126528660,4.96387,2014.6,2014.2,0.7845]
[1743126528960,9.71455,2014.7,2014.3,4.96446]
[1743126529160,9.71455,2014.7,2014.2,5.74919]
[1743126529896,14.67831,2014.7,2014.2,5.74919]
[1743126530468,14.67831,2014.7,2014.2,5.74912]
[1743126531261,4.96378,2014.6,2014.3,0.36680313]
[1743126532078,4.96416,2014.5,2014.3,0.36680313]
[1743126532259,5.79356,2014.5,2014.3,0.36680313]
[1743126532794,5.79356,2014.5,2014.1,5.01497]
[1743126532996,5.79356,2014.5,2014.1,6.43266959]
[1743126533492,0.8294,2014.5,2014.1,6.43266959]
[1743126533694,0.8294,2014.5,2014.2,4.96466]
[1743126534188,0.8294,2014.5,2014.2,5.33302466]
[1743126535504,4.96378,2014.6,2014.2,5.33302466]
[1743126535693,4.96378,2014.6,2014.3,0.36836466]
[1743126535878,4.9634,2014.8,2014.4,4.96413]
[1743126536080,4.752,2014.7,2014.4,0.8013]
[1743126536388,4.96378,2014.6,2014.3,0.36836466]
[1743126536595,9.71561,2014.7,2014.3,0.36836466]
[1743126536891,9.71561,2014.7,2014.3,5.33285466]
[1743126537095,9.71561,2014.7,2014.3,4.96449]
[1743126537273,14.67928,2014.7,2014.3,4.96449]
[1743126537464,14.67928,2014.7,2014.2,9.17103593]
[1743126537668,14.67928,2014.7,2014.2,14.13567593]
[1743126537868,9.71561,2014.7,2014.2,15.3899766]
[1743126538806,9.71561,2014.7,2014.3,4.96434]
[1743126539010,4.752,2014.7,2014.3,4.96434]
[1743126539302,4.752,2014.7,2014.4,4.96422]
[1743126539876,4.96331,2014.8,2014.4,5.33247291]
[1743126540408,10.47675,2015.1,2014.7,4.96341]
[1743126541175,4.96231,2015.2,2014.8,4.96327]
[1743126541415,4.96231,2015.2,2014.8,0.807]
[1743126541617,4.96231,2015.2,2014.8,5.77024]
[1743126541802,4.96231,2015.2,2014.8,6.13849291]
[1743126542181,5.95742028,2015.5,2015.1,4.96238]
[1743126542605,5.95742028,2015.5,2015.1,5.75238]
[1743126544082,10.91915028,2015.5,2015.1,0.79]
[1743126544278,10.91915028,2015.5,2015.0,8.73593884]
[1743126544489,5.95742028,2015.5,2015.0,8.73593884]
[1743126544691,5.95742028,2015.5,2015.0,9.29325514]
[1743126544692,10.91913028,2015.5,2015.0,9.29325514]
[1743126544892,5.95742028,2015.5,2015.0,9.29325514]
[1743126545120,4.9618,2015.4,2015.0,9.29325514]
[1743126545919,4.9618,2015.4,2015.0,4.33059514]
[1743126546095,4.9618,2015.4,2015.0,9.29322514]
[1743126546296,5.95742028,2015.5,2015.0,5.88819921]
[1743126547025,5.95742028,2015.5,2015.1,4.96242]
[1743126548605,4.96166,2015.5,2015.1,4.96242]
[1743126548808,10.46352,2015.6,2015.2,4.96217]
[1743126549216,15.42504,2015.6,2015.2,4.96217]
[1743126549405,10.46352,2015.6,2015.2,4.96217]
[1743126550005,15.42496,2015.6,2015.2,4.96217]
[1743126550208,10.46352,2015.6,2015.1,7.54083063]
[1743126550542,4.96169,2015.5,2015.1,7.54083063]
[1743126550692,4.96169,2015.5,2015.1,2.57830063]
[1743126551016,4.96169,2015.5,2015.0,8.92497223]
[1743126551223,4.96169,2015.5,2015.1,4.96251]
[1743126552032,4.96168,2015.5,2015.0,13.88759223]
[1743126552235,4.96274,2015.1,2014.7,0.8018]
[1743126552444,9.92538,2015.1,2014.7,4.96342]
[1743126552649,5.7455,2015.0,2014.5,11.7958]
[1743126552933,4.96319,2014.9,2014.4,8.36922593]
[1743126553136,4.96341,2014.8,2014.3,5.76616]
[1743126553523,4.96341,2014.8,2014.3,20.26616]
[1743126553830,9.92683,2014.8,2014.4,2.36711859]
[1743126554129,4.96341,2014.8,2014.4,7.33134859]
[1743126554334,4.96353,2014.7,2014.3,20.26611]
[1743126554549,5.74632,2014.7,2014.3,14.5]
[1743126555127,5.74632,2014.7,2014.3,19.46448]
[1743126555128,0.7827,2014.7,2014.3,19.46448]
[1743126555327,0.7827,2014.7,2014.4,4.96422]
[1743126555522,0.7827,2014.7,2014.4,1.54377875]
[1743126555725,4.96425,2014.4,2014.1,0.05]
[1743126555928,4.96401,2014.5,2014.1,0.05]
[1743126556638,9.92812,2014.5,2014.1,0.05]
[1743126556836,4.96438,2014.4,2014.1,0.05]
[1743126557007,0.8054,2014.3,2014.1,0.05]
[1743126558605,4.96438,2014.4,2014.1,0.05]
[1743126558606,9.92795,2014.6,2014.1,7.49361799]
[1743126558806,5.5772,2014.5,2014.1,7.49361799]
[1743126559039,4.751,2014.6,2014.2,4.96472]
[1743126559408,9.71488,2014.6,2014.2,4.96472]
[1743126559615,9.71488,2014.6,2014.3,14.5]
[1743126560255,9.71488,2014.6,2014.2,4.96472]
[1743126560617,9.71488,2014.6,2014.2,19.46472]
[1743126560948,4.96401,2014.5,2014.2,14.5]
[1743126561342,9.71487,2014.6,2014.2,14.5]
[1743126561646,14.67874,2014.6,2014.2,14.5]
[1743126561869,9.71487,2014.6,2014.2,14.5]
[1743126562372,9.71487,2014.6,2014.1,9.97972]
[1743126562571,9.71487,2014.6,2014.1,11.39862459]
[1743126562717,9.71487,2014.6,2014.1,25.89862459]
[1743126562918,0.17205491,2014.5,2014.1,25.89862459]
[1743126563769,0.8125,2014.4,2014.1,0.05]
[1743126564061,5.77691,2014.4,2014.1,0.05]
[1743126565748,0.8125,2014.4,2014.1,0.05]
[1743126565944,0.8125,2014.4,2014.1,5.01487]
[1743126566143,0.8125,2014.4,2014.1,6.43875648]
[1743126566580,5.13615491,2014.5,2014.1,6.43875648]
[1743126567547,0.17205491,2014.5,2014.1,25.90355648]
[1743126567752,0.17205491,2014.5,2014.3,4.96435]
[1743126568753,0.17205491,2014.5,2014.2,5.75411]
[1743126569055,0.17205491,2014.5,2014.2,8.76391524]
[1743126570127,0.17205491,2014.5,2014.3,4.96445]
[1743126570729,0.17205491,2014.5,2014.2,5.75411]
[1743126571726,0.17205491,2014.5,2014.2,4.96451]
[1743126572954,0.17205491,2014.5,2014.1,5.01487]
[1743126573166,4.96465,2014.3,2014.1,0.05]
[1743126573376,5.79071,2014.3,2014.1,0.05]
[1743126573833,10.75533,2014.3,2014.1,0.05]
[1743126574034,5.79071,2014.3,2014.1,0.05]
[1743126574234,10.75538,2014.3,2014.1,0.05]
[1743126574656,0.8261,2014.3,2014.1,0.05]
[1743126574854,5.13630491,2014.5,2014.1,0.05]
[1743126575053,4.752,2014.4,2014.1,5.01495]
[1743126575448,4.752,2014.4,2014.1,0.05]
[1743126576481,0.17205491,2014.5,2014.2,5.78375]
[1743126576639,0.17205491,2014.5,2014.3,4.96446]
[1743126576982,0.17205491,2014.5,2014.2,20.28375]
[1743126577264,0.17205491,2014.5,2014.3,4.96447]
[1743126580489,0.17205491,2014.5,2014.3,19.46447]
[1743126580671,0.17205491,2014.5,2014.3,21.65979825]
[1743126581481,0.17205491,2014.5,2014.3,16.69532825]
[1743126581642,0.17205491,2014.5,2014.3,14.5]
[1743126582179,0.17205491,2014.5,2014.3,4.96449]
[1743126584188,0.17205491,2014.5,2014.4,5.78755]
[1743126584792,0.17205491,2014.5,2014.4,6.15588635]
[1743126584992,0.17205491,2014.5,2014.4,8.10489958]
[1743126585675,0.17205491,2014.5,2014.4,11.15453245]
[1743126585863,0.17205491,2014.5,2014.4,11.10489958]
[1743126586063,0.17205491,2014.5,2014.4,25.60489958]
[1743126588147,0.17205491,2014.5,2014.4,26.06473735]
[1743126591789,0.17205491,2014.5,2014.4,26.4324659]
[1743126595697,0.7729,2015.4,2015.1,4.96253]
[1743126595900,0.7729,2015.4,2015.1,8.36755593]
[1743126596088,0.7729,2015.4,2015.1,9.77995652]
[1743126596803,0.7729,2015.4,2015.2,4.96228]
[1743126597301,0.7729,2015.4,2015.2,19.46228]
[1743126597805,0.97285584,2015.7,2015.3,4.96204]
[1743126597959,5.5743,2015.6,2015.3,4.96204]
[1743126600203,10.5357,2015.6,2015.2,14.5]
[1743126600502,10.5357,2015.6,2015.2,22.38646865]
[1743126600802,5.7857,2015.6,2015.2,22.38646865]
[1743126601406,4.96163,2015.5,2015.1,6.37478059]
[1743126601611,0.8156,2015.4,2015.1,9.92481]
[1743126602563,0.8156,2015.4,2015.1,4.96238]
[1743126602776,4.96222,2015.3,2014.8,4.96316]
[1743126603008,4.96264,2015.1,2014.7,6.03]
[1743126603302,0.7603,2015.0,2014.6,4.96361]
[1743126603506,0.7603,2014.8,2014.4,4.96402]
[1743126603660,0.7983,2014.7,2014.4,4.96402]
[1743126603867,0.7983,2014.7,2014.4,9.92815]
[1743126604409,0.7983,2014.7,2014.4,4.96402]
[1743126604641,0.7983,2014.7,2014.3,0.36681698]
[1743126604763,4.96414,2014.5,2014.3,0.36681698]
[1743126604959,0.7983,2014.6,2014.3,0.36681698]
[1743126605178,0.7983,2014.6,2014.3,5.33131698]
[1743126605462,0.7983,2014.6,2014.3,0.36681698]
[1743126605788,0.7983,2014.6,2014.3,4.96448]
[1743126606189,0.7983,2014.6,2014.4,4.96416]
[1743126606689,0.7983,2014.6,2014.3,4.96445]
[1743126606999,0.7983,2014.6,2014.4,4.9642]
[1743126607306,0.7983,2014.6,2014.4,4.96424]
[1743126607508,0.7983,2014.6,2014.3,4.9644]
[1743126607892,0.7983,2014.6,2014.4,4.96415]
[1743126609064,5.76212,2014.6,2014.2,4.96462]
[1743126609465,5.76212,2014.6,2014.1,3.45502593]
[1743126609466,4.96475,2014.2,2014.1,0.05]
[1743126609713,10.53085,2014.2,2014.1,0.05]
[1743126609873,11.08085,2014.2,2014.1,0.05]
[1743126612665,5.5661,2014.2,2014.1,0.05]
[1743126613563,0.8161,2014.2,2014.1,0.05]
[1743126613776,5.5129,2014.4,2014.1,0.05]
[1743126616066,8.36965593,2014.3,2014.1,0.05]
[1743126616307,0.762,2014.2,2014.1,0.05]
[1743126618195,0.7665,2014.4,2014.1,5.01499]
[1743126618434,4.751,2014.3,2014.1,13.38479593]
[1743126618567,4.751,2014.3,2014.1,0.05]
[1743126619576,0.807,2014.2,2014.1,0.05]
[1743126621182,4.751,2014.3,2014.1,5.0148]
[1743126621587,4.751,2014.3,2014.1,0.05]
[1743126622832,5.5315,2014.4,2014.2,4.96463]
[1743126623325,5.5315,2014.4,2014.1,5.01479]
[1743126623623,10.49586,2014.4,2014.1,0.05]
[1743126623785,15.46029,2014.4,2014.1,0.05]
[1743126623986,10.49586,2014.4,2014.1,0.05]
[1743126624290,4.96451,2014.3,2014.1,0.05]
[1743126627695,4.751,2014.2,2014.1,0.05]
[1743126631399,10.51525,2014.2,2014.1,0.05]
[1743126632014,11.06525,2014.2,2014.1,0.05]
[1743126634211,14.06525,2014.2,2014.1,0.05]
[1743126637630,5.75238,2013.7,2013.6,0.36696147]
[1743126637955,10.50338,2013.7,2013.6,0.36696147]
[1743126638765,10.50338,2013.7,2013.3,0.36696147]
[1743126639338,4.96627,2013.6,2013.3,0.36696147]
[1743126639663,4.96584,2013.8,2013.3,9.4889374]
[1743126639835,4.751,2013.7,2013.4,4.96659]
[1743126640863,4.751,2013.7,2013.4,5.33355147]
[1743126644683,4.751,2013.7,2013.5,4.96639]
[1743126645576,4.751,2013.7,2013.4,5.33364147]
[1743126646079,4.751,2013.7,2013.4,10.30017147]
[1743126646280,4.751,2013.7,2013.4,5.33349147]
[1743126646477,4.752,2013.8,2013.5,5.73775]
[1743126647675,9.71774,2013.8,2013.5,0.7713]
[1743126648682,4.752,2013.8,2013.5,5.73773]
[1743126648882,4.752,2013.8,2013.5,6.10469147]
[1743126650086,4.752,2013.8,2013.5,5.73773]
[1743126652568,4.752,2013.8,2013.5,6.10553401]
[1743126652766,4.752,2013.8,2013.5,11.07181401]
[1743126652966,0.1507294,2013.7,2013.5,11.07181401]
[1743126653195,0.1507294,2013.7,2013.5,9.003068]
[1743126654001,0.1507294,2013.7,2013.5,6.10538401]
[1743126656379,0.1507294,2013.7,2013.5,5.73758]
[1743126657891,0.1507294,2013.7,2013.5,11.07175401]
[1743126658112,0.1507294,2013.7,2013.6,4.96622]
[1743126658604,0.1507294,2013.7,2013.6,5.77327596]
[1743126658809,0.1507294,2013.7,2013.6,4.96622]
[1743126659498,0.1507294,2013.7,2013.6,5.33402401]
[1743126667180,0.1507294,2013.7,2013.6,0.36780401]
[1743126667601,0.1507294,2013.7,2013.6,5.33402401]
[1743126668608,0.1507294,2013.7,2013.6,0.36780401]
[1743126671810,0.1507294,2013.7,2013.6,4.96622]
[1743126672012,0.1507294,2013.7,2013.5,4.9663]
[1743126672190,0.1507294,2013.7,2013.6,0.36829513]
[1743126675491,0.1507294,2013.7,2013.6,6.28421724]
[1743126676092,0.1507294,2013.7,2013.6,0.36829513]
[1743126676816,0.1507294,2013.7,2013.6,5.33451513]
[1743126677624,0.1507294,2013.7,2013.6,0.36829513]
[1743126679321,5.88976177,2013.7,2013.6,0.36829513]
[1743126680820,4.96647,2013.6,2013.1,5.33570513]
[1743126681328,9.93294,2013.6,2013.1,5.33570513]
[1743126681531,4.9665,2013.5,2013.1,5.33570513]
[1743126682096,4.9665,2013.5,2013.2,0.36829513]
[1743126683326,0.8174,2013.4,2013.3,0.36829513]
[1743126683495,5.5684,2013.4,2013.3,0.36829513]
[1743126683696,4.751,2013.4,2013.3,0.36829513]
[1743126684225,4.751,2013.4,2013.2,0.36829513]
[1743126685098,5.78566,2013.3,2013.2,0.36829513]
[1743126685297,9.19068593,2013.3,2013.2,0.36829513]
[1743126687225,4.96803,2012.9,2012.7,0.36829513]
[1743126687403,5.80073,2012.9,2012.7,0.36829513]
[1743126687602,10.55173,2012.9,2012.7,0.36829513]
[1743126688025,4.751,2012.9,2012.7,0.36829513]
[1743126688731,4.96776,2013.0,2012.8,4.96807]
[1743126688732,4.751,2013.0,2012.8,4.96807]
[1743126689231,4.751,2013.0,2012.7,6.76879451]
[1743126689398,9.71859,2013.1,2012.7,6.76879451]
[1743126689598,9.71859,2013.1,2012.7,5.73821]
[1743126691939,9.71859,2013.1,2012.7,5.73815]
[1743126693434,9.71859,2013.1,2012.7,0.7698]
[1743126693607,4.96772,2013.0,2012.7,0.7698]
[1743126694439,4.96772,2013.0,2012.6,5.3356594]
[1743126694607,4.96772,2013.0,2012.6,4.96851]
[1743126694940,5.80092,2013.0,2012.6,4.96851]
[1743126695732,10.76887,2013.0,2012.5,23.67431593]
[1743126695933,4.96835,2012.8,2012.5,0.8006]
[1743126696135,5.80096,2013.0,2012.5,9.22401091]
[1743126696317,4.96776,2013.0,2012.5,9.22401091]
[1743126696517,4.96776,2013.0,2012.6,4.96859]
[1743126697536,0.8106,2012.7,2012.1,5.7986]
[1743126697740,4.751,2012.8,2012.4,0.7787]
[1743126698039,9.71931,2012.8,2012.4,5.74774]
[1743126698239,9.71884,2013.0,2012.5,8.37385593]
[1743126698404,4.96822,2012.8,2012.5,3.40502593]
[1743126699423,5.73561,2012.9,2012.5,3.40502593]
[1743126699621,4.96801,2012.9,2012.5,8.37382593]
[1743126704140,9.71871,2013.0,2012.5,13.34253593]
[1743126704316,9.71871,2013.0,2012.7,0.7843]
[1743126705067,4.96799,2012.9,2012.7,0.7843]
[1743126706660,4.96799,2012.9,2012.5,9.16963593]
[1743126707159,4.96799,2012.9,2012.5,23.66963593]
[1743126711469,4.96799,2012.9,2012.5,9.16963593]
[1743126711639,9.93609,2012.9,2012.5,9.16963593]
[1743126712141,9.93604,2012.9,2012.5,9.16963593]
[1743126712341,4.96799,2012.9,2012.5,8.74151485]
[1743126713473,4.96799,2012.9,2012.6,0.36777892]
[1743126714944,4.96799,2012.9,2012.5,8.37373593]
[1743126715147,9.71876,2013.0,2012.6,0.8283]
[1743126715346,9.71876,2013.0,2012.7,0.36826236]
[1743126715574,4.751,2012.9,2012.7,0.36826236]
[1743126715872,4.96776,2013.0,2012.7,0.36826236]
[1743126716073,9.71876,2013.0,2012.7,0.36826236]
[1743126716573,4.96776,2013.0,2012.7,0.36826236]
[1743126716875,9.71876,2013.0,2012.7,0.36826236]
[1743126717054,9.71876,2013.0,2012.6,5.79683]
[1743126718177,9.71876,2013.0,2012.6,0.8283]
[1743126718387,4.968,2012.9,2012.6,0.8283]
[1743126719343,4.968,2012.9,2012.5,13.34256593]
[1743126719671,4.968,2012.9,2012.5,8.37373593]
[1743126719974,4.968,2012.9,2012.7,0.36837951]
[1743126721250,4.96854,2012.7,2012.3,8.37440593]
[1743126722277,4.96878,2012.6,2012.3,3.40502593]
[1743126722646,9.71978,2012.6,2012.4,0.36855638]
[1743126723984,9.71978,2012.6,2012.5,0.36855638]
[1743126725078,9.71978,2012.6,2012.3,0.36855638]
[1743126725480,4.751,2012.6,2012.3,0.36855638]
[1743126725847,4.751,2012.6,2012.3,5.33797638]
[1743126726055,9.7197,2012.6,2012.3,0.36855638]
[1743126726482,9.7197,2012.6,2012.4,0.36855638]
[1743126726849,10.5369,2012.6,2012.4,0.36855638]
[1743126727771,10.5369,2012.6,2012.3,2.12733732]
[1743126730448,11.13926282,2012.6,2012.2,4.9695]
[1743126730781,11.13926282,2012.6,2012.4,0.36832893]
[1743126730782,7.84797732,2012.5,2012.4,0.36832893]
[1743126731291,8.79398,2012.2,2012.1,0.05]
[1743126731661,3.0,2012.2,2012.1,0.05]
[1743126732699,7.96968,2012.2,2012.1,0.05]
[1743126733187,8.72108,2012.2,2012.1,0.05]
[1743126739095,0.7514,2012.2,2012.1,0.05]
[1743126740002,5.72108,2012.2,2012.1,0.05]
[1743126743070,5.62831671,2012.2,2012.1,0.05]
[1743126743507,4.87691671,2012.2,2012.1,0.05]
[1743126744414,9.84659671,2012.2,2012.1,0.05]
[1743126746204,10.60549671,2012.2,2012.1,0.05]
[1743126747614,14.15549671,2012.2,2012.1,0.05]
[1743126748013,38.57876471,2012.2,2012.1,0.05]
[1743126749196,37.76873571,2012.2,2012.1,0.05]
[1743126752520,64.72266071,2012.2,2012.1,0.05]
[1743126752716,60.55802571,2012.2,2012.1,0.05]
[1743126754029,48.83149671,2012.2,2012.1,0.05]
[1743126754212,63.92164371,2012.2,2012.1,0.05]
[1743126755599,48.83149671,2012.2,2012.1,0.05]
[1743126755794,59.26735071,2012.2,2012.1,0.05]
[1743126756025,59.19268471,2012.2,2012.1,0.05]
[1743126756194,53.89068471,2012.2,2012.1,0.05]
[1743126756399,9.84759671,2012.2,2012.1,0.05]
[1743126756599,12.84759671,2012.2,2012.1,0.05]
[1743126756899,7.87791671,2012.2,2012.1,0.05]
[1743126757097,12.84759671,2012.2,2012.1,0.05]
[1743126759636,9.84759671,2012.2,2012.1,0.05]
[1743126760446,12.84759671,2012.2,2012.1,0.05]
[1743126762251,14.21469671,2012.2,2012.1,0.05]
[1743126762834,34.18834171,2012.2,2012.1,0.05]
[1743126763239,31.64708171,2012.2,2012.1,0.05]
[1743126763415,30.20154271,2012.2,2012.1,0.05]
[1743126764536,27.98090371,2012.2,2012.1,0.05]
[1743126764743,27.58049671,2012.2,2012.1,0.05]
[1743126768451,26.28038871,2012.2,2012.1,0.05]
[1743126768622,20.51437671,2012.2,2012.1,0.05]
[1743126768953,25.26637671,2012.2,2012.1,0.05]
[1743126774262,30.50737671,2012.2,2012.1,0.05]
[1743126774442,25.26637671,2012.2,2012.1,0.05]
[1743126774831,25.90572171,2012.2,2012.1,0.05]
[1743126779269,25.51963771,2012.2,2012.1,0.05]
[1743126779667,25.20739871,2012.2,2012.1,0.05]
[1743126780470,20.45539871,2012.2,2012.1,0.05]
[1743126780637,5.09459671,2012.2,2012.1,0.05]
[1743126780844,9.84659671,2012.2,2012.1,0.05]
[1743126781048,12.84659671,2012.2,2012.1,0.05]
[1743126784203,29.12828933,2012.2,2012.1,1e-05]
[1743126784368,4.97079,2011.8,2011.5,0.7679]
[1743126784695,4.752,2011.7,2011.5,0.7679]
[1743126784853,4.752,2011.7,2011.5,1.41316106]
[1743126785053,4.752,2011.7,2011.6,0.7679]
[1743126786051,9.72292,2011.7,2011.6,0.7679]
[1743126795061,4.752,2011.7,2011.6,0.7679]
[1743126795800,9.72292,2011.7,2011.6,0.7679]
[1743126803298,4.752,2011.7,2011.6,0.7679]
[1743126804708,9.94164,2011.8,2011.6,0.7679]
[1743126804709,4.97079,2011.8,2011.6,0.7679]
[1743126804914,9.72279,2011.8,2011.6,0.7679]
[1743126805112,4.96998,2012.1,2011.7,0.8061]
[1743126805320,7.752,2012.0,2011.7,5.77701]
[1743126805812,9.94014,2012.1,2011.7,0.8061]
[1743126806016,4.97018,2012.0,2011.7,0.8061]
[1743126806397,4.97045,2011.9,2011.7,0.8061]
[1743126810008,4.97018,2012.0,2011.7,0.8061]
[1743126810327,9.94053,2012.0,2011.7,0.8061]
[1743126813033,4.97047,2011.9,2011.7,0.8061]
[1743126815011,4.97021,2012.0,2011.7,0.8061]
[1743126819456,4.97021,2012.0,2011.7,2.93499256]
[1743126819625,4.97021,2012.0,2011.7,0.8061]
[1743126821149,4.97043,2011.9,2011.7,0.8061]
[1743126822065,4.97067,2011.8,2011.7,0.8061]
[1743126822264,4.97067,2011.8,2011.5,0.7558]
[1743126824724,4.97043,2011.9,2011.5,0.7558]
[1743126824725,9.94101,2011.9,2011.5,0.7558]
[1743126825237,4.97069,2011.8,2011.5,0.7558]
[1743126825650,4.97043,2011.9,2011.5,0.7558]
[1743126825949,4.97043,2011.9,2011.5,7.85606256]
[1743126826356,4.97043,2011.9,2011.6,14.5]
[1743126826538,0.7576,2012.0,2011.6,14.5]
[1743126826539,5.72779,2012.0,2011.6,14.5]
[1743126826860,4.75,2012.0,2011.7,7.87295256]
[1743126827268,6.11426129,2012.2,2011.7,7.87282256]
[1743126827502,9.71993,2012.1,2011.8,14.5]
[1743126828268,9.71993,2012.1,2011.7,12.84361256]
[1743126828447,9.71993,2012.1,2011.7,7.87281256]
[1743126828646,9.71993,2012.1,2011.7,9.38076914]
[1743126829279,9.71993,2012.1,2011.7,14.35157914]
[1743126829479,9.71993,2012.1,2011.7,9.38076914]
[1743126830044,1.1058925,2012.2,2012.0,2.12889256]
[1743126830176,0.12491671,2012.2,2012.1,7.88752256]
[1743126830484,0.12491671,2012.2,2012.1,6.55235185]
[1743126830990,0.12491671,2012.2,2012.1,8.68124441]
[1743126831193,0.12491671,2012.2,2012.1,7.88752256]
[1743126831488,0.12491671,2012.2,2012.0,0.46063916]
[1743126832200,0.12491671,2012.2,2011.9,7.09915256]
[1743126832953,0.12491671,2012.2,2011.9,4.97026]
[1743126833204,0.12491671,2012.2,2011.9,5.43089916]
[1743126834262,0.12491671,2012.2,2011.9,9.94047]
[1743126834462,0.12491671,2012.2,2011.9,9.94049]
[1743126834704,0.12491671,2012.2,2011.9,4.97021]
[1743126835000,0.12491671,2012.2,2011.9,6.38538631]
[1743126835201,0.12491671,2012.2,2012.0,5.75156]
[1743126835360,0.12491671,2012.2,2012.0,10.72161]
[1743126835704,0.12491671,2012.2,2012.0,11.182084]
[1743126836700,0.12491671,2012.2,2012.1,4.96993]
[1743126837199,0.12491671,2012.2,2012.1,5.72561705]
[1743126846746,0.12491671,2012.2,2012.1,5.77531178]
[1743126846903,0.12491671,2012.2,2012.1,6.57251178]
[1743126847832,0.12491671,2012.2,2012.1,9.57251178]
[1743126848210,0.12491671,2012.2,2012.1,9.94104728]
[1743126848409,0.12491671,2012.2,2012.1,9.89135255]
[1743126855639,0.12491671,2012.2,2012.1,6.89135255]
[1743126855840,0.12491671,2012.2,2012.1,9.94103545]
[1743126856145,0.12491671,2012.2,2012.1,10.44135255]
[1743126858958,0.12491671,2012.2,2012.1,12.56777471]
[1743126859262,0.12491671,2012.2,2012.1,9.56777471]
[1743126860554,0.12491671,2012.2,2012.1,12.56777471]
[1743126860743,0.12491671,2012.2,2012.1,18.59777471]
[1743126863254,0.12491671,2012.2,2012.1,15.12415255]
[1743126863463,0.12491671,2012.2,2012.1,13.88203921]
[1743126863665,0.93391671,2012.2,2012.1,4.96993]
[1743126863823,0.93391671,2012.2,2012.1,7.09635216]
[1743126864154,0.93391671,2012.2,2012.1,2.12642216]
[1743126864529,0.93391671,2012.2,2012.1,7.09635216]
[1743126864854,0.93391671,2012.2,2012.1,8.38911594]
[1743126868560,0.93391671,2012.2,2012.1,8.43881141]